fUSD/lending_fUSD_20240217
["ID","MTS","AMOUNT","RATE_DAILY","PERIOD"]
[314278380,1708145438231,-501.83287811,0.0003944,2]
[314278381,1708145438240,-66347.2771518,0.00039529,5]
[314278382,1708145438250,-100000.0,0.00039539,2]
[314278383,1708145438259,-210.0,0.0003954,2]
[314278384,1708145438269,-513.99808131,0.00039629,13]
[314278385,1708145438278,-151.22,0.00039638,2]
[314278386,1708145438288,-153.12255331,0.00039638,5]
[314278387,1708145438298,-205.0,0.0003964,2]
[314278388,1708145438307,-513.99808128,0.00039643,13]
[314278389,1708145438317,-513.99808128,0.00039656,13]
[314278390,1708145438326,-513.99808128,0.0003967,13]
[314278391,1708145438335,-281.7334653,0.00039672,12]
[314278392,1708145438344,-513.99808128,0.00039684,13]
[314278393,1708145438353,-513.99808128,0.00039698,13]
[314278394,1708145438362,-209.50537403,0.00039699,13]
[314278395,1708145438371,-66347.2771518,0.000397,5]
[314278396,1708145438381,-151.44898436,0.000397,2]
[314278397,1708145438389,-66347.2771518,0.00039709,5]
[314278398,1708145438399,-513.99808128,0.00039711,13]
[314278399,1708145438408,-157.021766,0.00039718,25]
[314278400,1708145438417,-513.99808128,0.00039725,13]
[314278401,1708145438427,-637.4844235,0.00039738,2]
[314278402,1708145438436,-513.99808128,0.00039739,13]
[314278403,1708145438446,-150.01,0.00039739,2]
[314278404,1708145438455,-3317.68767406,0.00039739,2]
[314278405,1708145438464,-210.25089806,0.0003974,2]
[314278406,1708145438473,-513.99808128,0.00039753,13]
[314278407,1708145438482,-513.99808128,0.00039766,13]
[314278408,1708145438491,-5000.0,0.0003978,3]
[314278409,1708145438500,-513.99808128,0.0003978,13]
[314278410,1708145438509,-9764.4537,0.0003978,2]
[314278411,1708145438518,-211.37430839,0.0003978,2]
[314278412,1708145438527,-480.96,0.0003978,2]
[314278413,1708145438537,-200.08955177,0.0003978,2]
[314278414,1708145438546,-1871.67201092,0.0003978,2]
[314278415,1708145438556,-783.58941827,0.0003978,2]
[314278416,1708145438565,-66347.2771518,0.0003978,6]
[314278417,1708145438574,-3421189.04140557,0.00039785,2]
[314278418,1708145438717,-1180.55249947,0.00039785,2]
[314278419,1708145440133,-1040.0,0.00039785,2]
[314278420,1708145440196,-150.79,0.0003926,2]
[314278421,1708145440205,-616.409985,0.00039785,2]
[314278426,1708145442613,-1.89553518,0.00039785,2]
[314278427,1708145442625,-14221.6,0.00039785,2]
[314278428,1708145442637,-499.50557195,0.00039785,2]
[314278429,1708145442648,-527.60914326,0.00039785,2]
[314278430,1708145442907,-857.1752401,0.00039785,2]
[314278431,1708145442919,-1454.49236758,0.00039785,2]
[314278434,1708145445549,-692.05151902,0.00039738,4]
[314278435,1708145445559,-73.05590878,0.00039739,2]
[314278436,1708145445712,-76.95409122,0.00039739,2]
[314278437,1708145445721,-268.86016958,0.00039739,2]
[314278438,1708145445737,-3048.82750448,0.00039739,2]
[314278439,1708145445747,-1861.66346308,0.00039784,4]
[314278440,1708145445756,-1537.03689312,0.00039785,2]
[314278441,1708145445772,-1882.01720076,0.00039785,2]
[314278442,1708145445784,-6600.01615306,0.00039785,2]
[314278443,1708145446064,-895.28815809,0.00039785,2]
[314278444,1708145513584,3719.16143134,0.00022789,2]
[314278445,1708145616537,4665.69764438,0.0002313,2]
[314278446,1708145640413,634.89996926,0.00025,2]
[314278447,1708145646442,980.24095502,0.0002,2]
[314278448,1708145646464,77.33356328,0.0002,2]
[314278449,1708146134559,550.0,0.00025,3]
[314278450,1708146292363,-155.0,0.00024995,2]
[314278451,1708146292386,-515.08405915,0.00024995,2]
[314278452,1708146292405,-920.50137587,0.00024996,2]
[314278453,1708146292425,-3244.75470096,0.00025,2]
[314278454,1708146292444,-1593.45591278,0.00025,2]
[314278455,1708146292464,-300.0,0.00025089,2]
[314278456,1708146302178,300.0,0.00025089,2]
[314278457,1708146355585,-8000.0,0.0002509,2]
[314278458,1708146356658,-8000.0,0.0002509,2]
[314278459,1708146357513,-8000.0,0.0002509,2]
[314278460,1708146358067,-6243.01198006,0.0002509,2]
[314278461,1708146358085,-1756.98801994,0.0002509,2]
[314278462,1708146358591,-8000.0,0.0002509,2]
[314278463,1708146359009,-4839.9838197,0.0002509,2]
[314278464,1708146359028,-154.95087158,0.0002509,2]
[314278465,1708146359047,-3005.06530872,0.000251,2]
[314278466,1708146431948,-134.54887358,0.000251,2]
[314278467,1708146431968,-155.0,0.00026249,2]
[314278468,1708146431991,-515.08405915,0.0002625,2]
[314278469,1708146432010,-369.0,0.00026252,2]
[314278470,1708146432031,-826.36706727,0.00026299,2]
[314278471,1708146434168,-2000.0,0.000263,2]
[314278472,1708146435622,-2000.0,0.000263,2]
[314278473,1708146437189,-2000.0,0.000263,2]
[314278474,1708146438721,-1841.0000326,0.000263,2]
[314278495,1708146631855,-613.66758391,0.00027099,2]
[314278496,1708146631866,-355.48591692,0.00027099,2]
[314278517,1708146637691,-159.59814223,0.00027099,2]
[314278518,1708146637700,-159.15500706,0.000271,2]
[314278519,1708146637710,-2054.65999858,0.000272,2]
[314278520,1708146637743,-14133.99018486,0.000272,2]
[314278521,1708146637753,-8256.37090165,0.000275,2]
[314278522,1708146637763,-160.05272854,0.00027998,2]
[314278523,1708146637772,-272.49491905,0.00027998,2]
[314278524,1708146637782,-993.41463732,0.00027998,2]
[314278525,1708146637791,-300.0,0.00027999,2]
[314278526,1708146637801,-719552.42879962,0.00028,2]
[314278527,1708146637810,-1547.72,0.00029096,2]
[314278528,1708146637819,-320.26,0.00029096,2]
[314278529,1708146637828,-369.0,0.00029239,2]
[314278530,1708146637837,-250.0,0.00029512,2]
[314278531,1708146637846,-518.0,0.00029512,2]
[314278532,1708146637855,-2000.0,0.00029512,2]
[314278533,1708146637866,-17019.28823871,0.0003,4]
[314278534,1708146637875,-1861.66346308,0.0003,4]
[314278535,1708146637884,-155.0,0.0003,2]
[314278536,1708146637894,-45118.80767357,0.0003,2]
[314278537,1708146637903,-453.0,0.00030534,2]
[314278538,1708146637912,-250.0,0.00030807,2]
[314278539,1708146637921,-320.26,0.0003136,2]
[314278540,1708146637930,-558.0,0.00031886,3]
[314278541,1708146637939,-250.16,0.00031946,2]
[314278542,1708146637952,-412.37702673,0.00032125,2]
[314278543,1708146637961,-308.14,0.00032746,2]
[314278544,1708146637970,-705.79,0.00032815,2]
[314278545,1708146637979,-174.62,0.00033182,2]
[314278546,1708146637988,-686.0,0.00033298,3]
[314278547,1708146637998,-320.26,0.00033624,2]
[314278548,1708146638007,-225.01,0.00033947,2]
[314278549,1708146638016,-11722.0,0.000343,3]
[314278550,1708146638029,-844.0,0.00034773,3]
[314278551,1708146638039,-582.93405898,0.000349,2]
[314278552,1708146638048,-582.93405892,0.000349,2]
[314278553,1708146638062,-582.93405892,0.000349,2]
[314278554,1708146638072,-582.93405892,0.000349,2]
[314278555,1708146638081,-582.93405892,0.000349,2]
[314278556,1708146638090,-12938.96551711,0.00035,2]
[314278557,1708146638101,-3450.46485095,0.00035,5]
[314278558,1708146638110,-412.8889057,0.00035007,7]
[314278559,1708146638120,-320.26,0.00035888,2]
[314278560,1708146638129,-153.21919643,0.00036289,2]
[314278561,1708146638138,-1038.0,0.00036313,3]
[314278562,1708146638149,-7245.18281771,0.00036389,2]
[314278563,1708146638158,-7245.18281765,0.00036389,2]
[314278564,1708146638167,-7245.18281765,0.00036389,2]
[314278565,1708146638176,-7245.18281765,0.00036389,2]
[314278567,1708146638185,-582.93405892,0.00036438,2]
[314278568,1708146638194,-206.0,0.00036473,2]
[314278570,1708146638203,-412.8889057,0.00036598,8]
[314278572,1708146638212,-2000.0,0.00037,2]
[314278574,1708146638222,-170.02455229,0.00037571,2]
[314278576,1708146638231,-180.0,0.00037671,2]
[314278578,1708146638240,-324580.675483,0.000379,3]
[314278579,1708146638250,-180.0,0.00037921,3]
[314278580,1708146638260,-582.93405892,0.00038017,2]
[314278581,1708146638269,-320.26,0.00038152,2]
[314278582,1708146638278,-412.8889057,0.00038189,8]
[314278583,1708146638288,-7245.18281765,0.00038217,2]
[314278584,1708146638297,-1000.0,0.00038245,2]
[314278585,1708146638306,-334.73,0.00038356,15]
[314278586,1708146638316,-151.51,0.00038356,2]
[314278587,1708146638325,-427.9068,0.0003879,2]
[314278588,1708146638335,-2718.8773,0.00039032,2]
[314278589,1708146638346,-81145.1688707,0.00039122,4]
[314278590,1708146638356,-137807.8701,0.00039132,2]
[314278591,1708146638366,-3012.30312224,0.00039162,11]
[314278592,1708146638375,-1326.18056004,0.00039179,13]
[314278593,1708146638384,-159.15500706,0.00039192,2]
[314278594,1708146638393,-1042.69560835,0.00039196,13]
[314278595,1708146638403,-160.77,0.0003926,2]
[314278596,1708146638412,-100000.0,0.00039292,2]
[314278597,1708146638422,-151.021766,0.00039448,24]
[314278598,1708146638431,-210.67,0.000395,2]
[314278599,1708146638440,-582.93405892,0.00039596,2]
[314278600,1708146638450,-262.95123428,0.00039648,11]
[314278601,1708146638460,-5000.0,0.00039665,3]
[314278602,1708146638469,-522.39294552,0.0003968,2]
[314278603,1708146638479,-1247.7813406,0.0003968,2]
[314278604,1708146638491,-2000.0,0.000397,2]
[314278605,1708146638501,-2848.16,0.000397,30]
[314278606,1708146638510,-2848.17,0.000397,2]
[314278607,1708146638519,-522.3929455,0.0003973,2]
[314278608,1708146638529,-1247.7813406,0.0003973,2]
[314278609,1708146638539,-151.021766,0.00039748,25]
[314278610,1708146638549,-81145.1688707,0.00039763,5]
[314278611,1708146638559,-46882.5228962,0.00039773,2]
[314278612,1708146638568,-984.6347949,0.00039773,2]
[314278613,1708146638578,-162290.337741,0.00039775,5]
[314278614,1708146638587,-20000.0,0.0003978,2]
[314278615,1708146638597,-412.8889057,0.0003978,9]
[314278616,1708146638606,-522.3929455,0.0003978,2]
[314278617,1708146638616,-1247.7813406,0.0003978,2]
[314278618,1708146638627,-150.01,0.00039784,2]
[314278619,1708146638636,-3317.68767406,0.00039784,2]
[314278620,1708146638646,-161.402987,0.00039785,2]
[314278621,1708146638655,-9470.49136279,0.00039785,2]
[314278622,1708146638665,-405777.71715819,0.00039785,2]
[314278623,1708146638888,-2065.26775631,0.00039785,2]
[314278624,1708146638904,-5068.30342588,0.00039785,2]
[314278628,1708146641228,-403.2002699,0.00039785,2]
[314278632,1708146642889,-150.01,0.00039784,2]
[314278633,1708146642899,-654.42390764,0.00039784,2]
[314278634,1708146642911,-2663.26376642,0.00039784,2]
[314278635,1708146642920,-1229.95222424,0.00039785,2]
[314278636,1708146642944,-258.70879586,0.00039785,2]
[314278637,1708146643003,-10174.08021035,0.00039785,2]
[314278640,1708146645734,-3141.12923566,0.00039785,2]
[314278641,1708146645749,-21942.73010372,0.00039785,2]
[314278642,1708146646360,-159115.70585865,0.00039785,2]
[314278643,1708147326259,-200.0,0.00026998,2]
[314278654,1708147831943,-519.9320021,0.0002499,2]
[314278655,1708147831954,-365.5204979,0.0002499,2]
[314278656,1708147831966,-154.4115042,0.0002499,2]
[314278657,1708147831975,-519.9320021,0.00024991,2]
[314278658,1708147831984,-264.6164917,0.00024992,2]
[314278659,1708147832197,-255.3155104,0.00024992,2]
[314278660,1708147832212,-649.90062772,0.00025,2]
[314278661,1708147832221,-285.65888179,0.000267,2]
[314278662,1708147832230,-1712.12143266,0.00026999,2]
[314278663,1708147832247,-380.49190557,0.00026999,2]
[314278664,1708147832259,-2322.22076177,0.00026999,2]
[314278665,1708147832269,-155.0,0.00029899,2]
[314278666,1708147832278,-156.27279195,0.000299,2]
[314278668,1708147832288,-300.0,0.00029999,2]
[314278670,1708147832297,-150.0,0.00029999,2]
[314278672,1708147832306,-300.0,0.0003,30]
[314278674,1708147832315,-1556.56,0.0003,2]
[314278676,1708147832324,-501.13180172,0.00031375,2]
[314278679,1708147832340,-637.49819828,0.00031375,2]
[314278680,1708147832349,-1861.66346308,0.00031999,4]
[314278683,1708147832360,-155.47,0.00032,2]
[314278684,1708147832369,-480.51,0.00032,2]
[314278686,1708147832379,-373.3,0.00032064,2]
[314278688,1708147832388,-373.3,0.00032233,2]
[314278690,1708147832397,-2431.24,0.00032371,2]
[314278692,1708147832406,-373.3,0.00032402,2]
[314278694,1708147832415,-2431.24,0.00032558,2]
[314278696,1708147832424,-373.3,0.0003257,2]
[314278698,1708147832434,-873.82,0.00032658,2]
[314278700,1708147832443,-333.0,0.000327,2]
[314278702,1708147832453,-373.3,0.00032739,2]
[314278704,1708147832463,-2431.24,0.00032745,2]
[314278706,1708147832472,-180.0,0.00032868,3]
[314278709,1708147832482,-23801.56798584,0.00032869,4]
[314278813,1708147837909,-213.08384221,0.00024989,2]
[314278815,1708147837919,-372.62383218,0.00032869,4]
[314278817,1708147837941,-4671.82337344,0.00032869,4]
[314278818,1708147837954,-28291.25806014,0.00032869,4]
[314278819,1708147837964,-1182.63770087,0.00032877,4]
[314278820,1708147837973,-275.27199979,0.00032877,2]
[314278821,1708147837982,-406629.68392014,0.00032879,2]
[314278822,1708147837991,-373.3,0.00032908,2]
[314278823,1708147838000,-2431.24,0.00032932,2]
[314278824,1708147838010,-210.0,0.00032999,3]
[314278825,1708147838019,-373.3,0.00033077,2]
[314278826,1708147838028,-2431.24,0.00033119,2]
[314278827,1708147838037,-156.27279195,0.00033181,2]
[314278828,1708147838046,-373.3,0.00033245,2]
[314278829,1708147838055,-2431.24,0.00033306,2]
[314278830,1708147838064,-373.3,0.00033414,2]
[314278831,1708147838074,-2431.24,0.00033493,2]
[314278832,1708147838083,-154.07,0.00033507,2]
[314278833,1708147838092,-373.3,0.00033583,2]
[314278834,1708147838101,-153.99,0.00033597,2]
[314278835,1708147838110,-192.5,0.0003367,120]
[314278836,1708147838119,-2431.24,0.0003368,2]
[314278837,1708147838127,-373.3,0.00033752,2]
[314278838,1708147838137,-1000.0,0.00033827,2]
[314278839,1708147838145,-2431.24,0.00033867,2]
[314278840,1708147838155,-373.3,0.0003392,2]
[314278841,1708147838164,-2000.0,0.00033977,2]
[314278842,1708147838173,-153.99,0.00034034,2]
[314278843,1708147838182,-2431.24,0.00034054,2]
[314278844,1708147838191,-373.3,0.00034089,2]
[314278845,1708147838200,-170.3,0.00034203,2]
[314278846,1708147838209,-373.3,0.00034258,2]
[314278847,1708147838219,-2083.0,0.000343,3]
[314278848,1708147838228,-873.82,0.00034301,2]
[314278849,1708147838237,-373.3,0.00034427,2]
[314278850,1708147838247,-153.99,0.00034472,2]
[314278851,1708147838256,-373.3,0.00034596,2]
[314278852,1708147838265,-373.3,0.00034764,2]
[314278853,1708147838274,-165.59,0.00034831,2]
[314278854,1708147838283,-153.99,0.0003491,2]
[314278855,1708147838292,-373.3,0.00034933,2]
[314278856,1708147838301,-5194.29756833,0.0003499,8]
[314278857,1708147838310,-3450.38390908,0.00035,5]
[314278858,1708147838319,-373.3,0.00035102,2]
[314278859,1708147838328,-373.3,0.00035271,2]
[314278860,1708147838337,-156.62,0.00035305,2]
[314278861,1708147838346,-153.99,0.00035347,2]
[314278862,1708147838355,-2000.0,0.000356,2]
[314278863,1708147838370,-409.94,0.00035647,2]
[314278864,1708147838379,-150.0,0.00035903,2]
[314278865,1708147838388,-873.82,0.00035945,2]
[314278866,1708147838397,-156.27279195,0.00036461,2]
[314278867,1708147838406,-310.0,0.000369,2]
[314278868,1708147838416,-250.0,0.00037025,111]
[314278869,1708147838426,-150.0,0.00037273,2]
[314278870,1708147838435,-886.89,0.00037284,2]
[314278871,1708147838444,-250.0,0.00037373,2]
[314278872,1708147838454,-151.44898436,0.00037412,2]
[314278873,1708147838463,-20502.85541831,0.00037419,2]
[314278874,1708147838472,-226380.0,0.00037422,2]
[314278875,1708147838481,-873.82,0.00037589,2]
[314278876,1708147838491,-1491.4,0.00037634,2]
[314278877,1708147838500,-439.81242896,0.000377,12]
[314278878,1708147838509,-555.43607178,0.000377,2]
[314278879,1708147838518,-5194.29756833,0.00037701,10]
[314278880,1708147838528,-1530.62841674,0.00037711,2]
[314278881,1708147838537,-201.24487841,0.00037711,11]
[314278882,1708147838546,-242.65518275,0.00037711,2]
[314278883,1708147838556,-36360.0829783,0.00037787,10]
[314278884,1708147838565,-124663.14164,0.0003779,10]
[314278885,1708147838574,-20502.85541831,0.00037797,2]
[314278886,1708147838583,-1000270.99048627,0.000378,3]
[314278887,1708147838592,-685.57516698,0.000378,2]
[314278888,1708147838601,-214.67526643,0.000378,2]
[314278889,1708147838610,-646.84666097,0.000378,2]
[314278890,1708147838619,-1871.67201092,0.000378,2]
[314278891,1708147838628,-153.47195516,0.00037811,2]
[314278892,1708147838637,-200.0,0.0003789,7]
[314278893,1708147838646,-209.18429795,0.0003789,7]
[314278894,1708147838655,-20502.85541831,0.00037897,2]
[314278895,1708147838665,-448.33181642,0.000379,3]
[314278896,1708147838674,-591539.288988,0.000379,3]
[314278897,1708147838683,-13112.37165254,0.000379,2]
[314278898,1708147838692,-409.94,0.00037911,2]
[314278899,1708147838701,-17112.19268128,0.00038,8]
[314278900,1708147838710,-215.98921406,0.00038,4]
[314278901,1708147838720,-1000.0,0.00038055,2]
[314278902,1708147838729,-206.0,0.00038178,2]
[314278903,1708147838739,-1537.88,0.00038314,2]
[314278904,1708147838748,-150.99,0.00038314,2]
[314278905,1708147838757,-175.21,0.00038356,2]
[314278906,1708147838767,-152.33,0.00038356,2]
[314278907,1708147838776,-667.18,0.00038356,15]
[314278908,1708147838785,-20502.85541831,0.00038387,2]
[314278909,1708147838795,-84505.6127126,0.0003839,3]
[314278910,1708147838805,-2000.0,0.000384,2]
[314278911,1708147838815,-499.99,0.00038623,2]
[314278912,1708147838824,-2460.2944,0.00038883,2]
[314278913,1708147838834,-1222.8295,0.00038883,2]
[314278914,1708147838843,-205.0,0.00038883,2]
[314278915,1708147838852,-500.0,0.00038883,2]
[314278916,1708147838862,-151.021766,0.00039148,26]
[314278917,1708147838871,-1752.35749083,0.00039196,13]
[314278918,1708147838880,-19611.07646957,0.00039196,13]
[314278919,1708147838889,-18909.69762441,0.00039213,12]
[314278920,1708147838899,-873.82,0.00039233,2]
[314278921,1708147838908,-151.021766,0.00039248,25]
[314278922,1708147838917,-575.17,0.0003926,2]
[314278923,1708147838926,-1530.62841672,0.0003929,2]
[314278924,1708147838936,-942.7732,0.00039302,2]
[314278925,1708147838945,-4636.2505,0.00039302,2]
[314278926,1708147838956,-151.021766,0.00039348,30]
[314278927,1708147838965,-25997.55481538,0.0003939,2]
[314278928,1708147838974,-151.021766,0.00039448,31]
[314278929,1708147838984,-151.021766,0.00039448,32]
[314278930,1708147838993,-151.021766,0.00039448,31]
[314278931,1708147839003,-151.021766,0.00039448,32]
[314278932,1708147839012,-200.0,0.00039466,20]
[314278933,1708147839021,-200.0,0.00039467,20]
[314278934,1708147839030,-200.0,0.00039467,20]
[314278935,1708147839039,-188.0,0.000395,7]
[314278936,1708147839048,-359.85,0.000395,2]
[314278937,1708147839058,-151.021766,0.00039548,25]
[314278938,1708147839067,-151.021766,0.00039548,32]
[314278939,1708147839076,-156.88,0.0003958,4]
[314278940,1708147839086,-156.62,0.00039585,2]
[314278941,1708147839095,-2956.427856,0.000396,2]
[314278942,1708147839104,-210.0,0.000396,2]
[314278943,1708147839114,-326.39602264,0.00039616,11]
[314278944,1708147839123,-151.021766,0.00039648,26]
[314278945,1708147839133,-151.021766,0.00039648,33]
[314278946,1708147839142,-150.0,0.00039651,2]
[314278947,1708147839151,-150.0,0.00039679,2]
[314278948,1708147839161,-15595.465,0.00039685,2]
[314278949,1708147839170,-1338.5924,0.00039685,2]
[314278950,1708147839180,-7128.678,0.00039685,2]
[314278951,1708147839190,-1000.0,0.00039699,2]
[314278952,1708147839198,-2435237.07032723,0.000397,5]
[314278953,1708147839208,-284863.24066563,0.000397,2]
[314278954,1708147839216,-156.27279195,0.00039742,2]
[314278955,1708147839225,-151.021766,0.00039748,26]
[314278956,1708147839235,-151.021766,0.00039748,24]
[314278957,1708147839244,-183.59457966,0.00039752,2]
[314278958,1708147839253,-201.31858058,0.00039771,2]
[314278959,1708147839262,-238.56570963,0.00039771,2]
[314278960,1708147839272,-256.2729031,0.00039772,2]
[314278961,1708147839282,-960.4181098,0.00039772,2]
[314278962,1708147839291,-103505.4931357,0.00039772,2]
[314278963,1708147839301,-3234.4448983,0.00039772,2]
[314278964,1708147839310,-18938.980534,0.00039772,2]
[314278965,1708147839320,-4420.0035194,0.00039772,2]
[314278966,1708147839330,-28978.0810208,0.00039772,2]
[314278967,1708147839339,-20000.0,0.0003978,2]
[314278968,1708147839348,-166.74,0.00039782,2]
[314278969,1708147839357,-772.24785103,0.00039784,4]
[314278970,1708147839574,-150.01,0.00039784,2]
[314278971,1708147839584,-3317.68767406,0.00039784,2]
[314278972,1708147839594,-457393.16489211,0.00039785,2]
[314278973,1708147839604,-2000.0,0.00039785,2]
[314278974,1708147839613,-200.0,0.00039785,2]
[314278975,1708147839622,-2000.0,0.00039785,2]
[314278976,1708147839631,-200.0,0.00039785,2]
[314278977,1708147839641,-405.42111,0.00039785,2]
[314278978,1708147839650,-2000.0,0.00039785,2]
[314278979,1708147839660,-200.0,0.00039785,2]
[314278980,1708147839668,-1000.0,0.000398,2]
[314278981,1708147839678,-161.41912731,0.00039853,2]
[314278982,1708147839688,-20502.85541831,0.00039869,2]
[314278983,1708147839697,-256.2729031,0.00039872,2]
[314278984,1708147839707,-960.4181098,0.00039872,2]
[314278985,1708147839715,-84429.7611825,0.00039872,2]
[314278986,1708147839724,-1000.0,0.00039969,2]
[314278987,1708147839733,-314.28780366,0.00039999,31]
[314278988,1708147839742,-7783.66646751,0.0004,6]
[314278989,1708147839751,-255.0,0.0004,12]
[314278990,1708147839760,-2280.79755299,0.0004,4]
[314278991,1708147839769,-1063.22242919,0.0004,4]
[314278993,1708147839779,-162.39448833,0.0004,7]
[314278995,1708147839788,-266.16367082,0.0004,12]
[314278996,1708147839799,-188.0,0.00040048,7]
[314278997,1708147839935,-151.021766,0.00040118,23]
[314278998,1708147839945,-180.0,0.00040126,2]
[314278999,1708147839955,-409.94,0.00040175,2]
[314279000,1708147839964,-2000.0,0.00040183,2]
[314279001,1708147839973,-200.0,0.00040183,2]
[314279002,1708147839983,-2000.0,0.00040183,2]
[314279003,1708147839992,-200.0,0.00040183,2]
[314279004,1708147840002,-2000.0,0.00040183,2]
[314279005,1708147840012,-200.0,0.00040183,2]
[314279006,1708147840021,-153.47195516,0.0004021,7]
[314279007,1708147840031,-206.0,0.0004036,10]
[314279008,1708147840041,-157.021766,0.00040418,24]
[314279009,1708147840051,-251.47207291,0.00040515,30]
[314279010,1708147840060,-2000.0,0.00040585,2]
[314279011,1708147840069,-200.0,0.00040585,2]
[314279012,1708147840079,-2000.0,0.00040585,2]
[314279013,1708147840089,-200.0,0.00040585,2]
[314279014,1708147840098,-188.0,0.00040596,7]
[314279015,1708147840107,-465.34,0.00040608,10]
[314279016,1708147840118,-201.31858058,0.00040617,3]
[314279017,1708147840127,-238.56570963,0.00040617,3]
[314279018,1708147840136,-1528.574,0.00040618,7]
[314279019,1708147840146,-155.80632865,0.00040618,10]
[314279020,1708147840155,-189.43353779,0.00040618,6]
[314279021,1708147840164,-199.02203505,0.00040618,120]
[314279022,1708147840173,-11031.87747343,0.00040618,2]
[314279023,1708147840182,-275.15622716,0.00040618,30]
[314279024,1708147840192,-216.5760994,0.00040618,30]
[314279025,1708147840201,-303.48458053,0.00040618,100]
[314279026,1708147840210,-158.52689137,0.00040618,2]
[314279027,1708147840219,-159.35404023,0.00040618,30]
[314279028,1708147840228,-203.39521363,0.00040618,2]
[314279029,1708147840238,-1147.82957012,0.00040618,2]
[314279030,1708147840248,-201.59239623,0.00040618,120]
[314279031,1708147840258,-155.413227,0.00040618,2]
[314279032,1708147840268,-155.65235644,0.00040618,120]
[314279033,1708147840277,-5308.17816563,0.00040618,4]
[314279034,1708147840287,-5514.42836242,0.00040618,13]
[314279035,1708147840297,-1587.56387395,0.00040618,2]
[314279036,1708147840307,-156.29488104,0.00040618,2]
[314279037,1708147840316,-4556.30923572,0.00040618,2]
[314279038,1708147840326,-706.4750676,0.00040618,2]
[314279039,1708147840335,-230.0,0.00040618,120]
[314279040,1708147840345,-169.71709592,0.00040618,120]
[314279041,1708147840355,-155.29370094,0.00040618,2]
[314279042,1708147840365,-20009.47953652,0.00040618,2]
[314279043,1708147840376,-306.59704943,0.00040618,120]
[314279044,1708147840385,-701.82634713,0.00040618,30]
[314279045,1708147840395,-393.8579256,0.00040618,7]
[314279046,1708147840404,-163.94316074,0.00040618,120]
[314279047,1708147840413,-151.34673705,0.00040618,30]
[314279048,1708147840423,-158.00946671,0.00040618,60]
[314279049,1708147840432,-199.26055783,0.00040618,30]
[314279050,1708147840442,-472.09255615,0.00040618,30]
[314279051,1708147840452,-333.0,0.00040618,2]
[314279052,1708147840462,-549.822688,0.00040618,30]
[314279054,1708147840472,-68192.0,0.00040618,4]
[314279055,1708147840481,-1297.10873261,0.00040618,2]
[314279056,1708147840491,-1000.0,0.00040699,2]
[314279057,1708147840501,-151.021766,0.00040718,25]
[314279058,1708147840511,-575.17,0.00040733,2]
[314279059,1708147840521,-150.0,0.00040793,4]
[314279060,1708147840530,-1530.62841672,0.00040869,5]
[314279061,1708147840541,-151.22,0.00040876,2]
[314279062,1708147840551,-873.82,0.00040877,2]
[314279063,1708147840560,-2000.0,0.00040991,2]
[314279064,1708147840570,-200.0,0.00040991,2]
[314279065,1708147840579,-2000.0,0.00040991,2]
[314279066,1708147840588,-200.0,0.00040991,2]
[314279067,1708147840597,-312.15551561,0.00041,120]
[314279068,1708147840607,-2504.26815191,0.00041095,2]
[314279069,1708147840616,-2000.0,0.000411,2]
[314279070,1708147840626,-2000.0,0.000411,2]
[314279071,1708147840636,-663.59417096,0.000411,2]
[314279072,1708147840646,-3000.0,0.000411,2]
[314279073,1708147840656,-157.021766,0.00041118,26]
[314279074,1708147840666,-188.0,0.00041144,7]
[314279075,1708147840675,-2000.0,0.000414,2]
[314279076,1708147840685,-200.0,0.000414,2]
[314279077,1708147840695,-200.0,0.000414,2]
[314279078,1708147840705,-157.021766,0.00041418,24]
[314279079,1708147840714,-188.0,0.00041692,7]